fUSD/lending_fUSD_20240222
["ID","MTS","AMOUNT","RATE_DAILY","PERIOD"]
[314904972,1708626638771,-500.0,0.00032876,2]
[314904973,1708626638780,-345.85464403,0.00032876,2]
[314904974,1708626638790,-500.0,0.00032876,2]
[314904975,1708626638799,-508.53786945,0.00032876,2]
[314904976,1708626638808,-503.144189,0.00032876,2]
[314904977,1708626638818,-500.0,0.00032876,2]
[314904978,1708626638827,-500.0,0.00032876,2]
[314904979,1708626638837,-500.0,0.00032876,2]
[314904980,1708626638846,-500.0,0.00032876,2]
[314904981,1708626638856,-500.0,0.00032876,2]
[314904982,1708626638865,-500.0,0.00032876,2]
[314904983,1708626638874,-500.0,0.00032876,2]
[314904984,1708626638883,-500.0,0.00032876,2]
[314904985,1708626638892,-500.0,0.00032876,2]
[314904986,1708626638901,-500.0,0.00032876,2]
[314904987,1708626638911,-500.0,0.00032876,2]
[314904988,1708626638920,-610.65,0.00032876,2]
[314904989,1708626638929,-500.0,0.00032876,2]
[314904990,1708626638938,-500.0,0.00032876,2]
[314904991,1708626638947,-500.0,0.00032876,2]
[314904992,1708626638956,-500.0,0.00032876,2]
[314904993,1708626638966,-500.0,0.00032876,2]
[314904994,1708626638977,-500.0,0.00032876,2]
[314904995,1708626638986,-350.08439792,0.00032876,2]
[314904996,1708626638996,-500.0,0.00032876,2]
[314904997,1708626639006,-500.0,0.00032876,2]
[314904998,1708626639016,-500.0,0.00032876,2]
[314904999,1708626639025,-500.0,0.00032876,2]
[314905000,1708626639035,-500.0,0.00032876,2]
[314905001,1708626639044,-500.0,0.00032876,2]
[314905002,1708626639053,-500.0,0.00032876,2]
[314905003,1708626639063,-500.0,0.00032876,2]
[314905004,1708626639072,-528.62,0.00032876,2]
[314905005,1708626639081,-500.0,0.00032876,2]
[314905006,1708626639090,-500.0,0.00032876,2]
[314905007,1708626639099,-500.0,0.00032876,2]
[314905008,1708626639108,-500.0,0.00032876,2]
[314905009,1708626639117,-500.0,0.00032876,2]
[314905010,1708626639126,-500.0,0.00032876,2]
[314905011,1708626639135,-500.0,0.00032876,2]
[314905012,1708626639144,-318.63254013,0.00032876,2]
[314905013,1708626639153,-500.0,0.00032876,2]
[314905014,1708626639162,-500.0,0.00032876,2]
[314905015,1708626639172,-500.0,0.00032876,2]
[314905016,1708626639181,-500.0,0.00032876,2]
[314905017,1708626639191,-658.33,0.00032876,2]
[314905018,1708626639200,-765.79,0.00032876,2]
[314905019,1708626639210,-515.41,0.00032876,2]
[314905020,1708626639220,-500.0,0.00032876,2]
[314905021,1708626639234,-500.0,0.00032876,2]
[314905022,1708626639243,-500.0,0.00032876,2]
[314905023,1708626639252,-926.14,0.00032876,2]
[314905024,1708626639262,-500.0,0.00032876,2]
[314905025,1708626639271,-500.0,0.00032876,2]
[314905026,1708626639280,-659.39,0.00032876,2]
[314905027,1708626639289,-500.0,0.00032876,2]
[314905028,1708626639299,-191.72877084,0.00032876,2]
[314905029,1708626639309,-500.0,0.00032876,2]
[314905030,1708626639319,-500.0,0.00032876,2]
[314905031,1708626639328,-500.0,0.00032876,2]
[314905032,1708626639337,-500.0,0.00032876,2]
[314905033,1708626639346,-500.0,0.00032876,2]
[314905034,1708626639356,-500.0,0.00032876,2]
[314905035,1708626639365,-500.0,0.00032876,2]
[314905036,1708626639374,-520.6975681,0.00032876,2]
[314905037,1708626639383,-500.0,0.00032876,2]
[314905038,1708626639518,-500.0,0.00032876,2]
[314905039,1708626639528,-500.0,0.00032876,2]
[314905040,1708626639538,-500.0,0.00032876,2]
[314905041,1708626639548,-500.0,0.00032876,2]
[314905042,1708626639557,-500.0,0.00032876,2]
[314905043,1708626639568,-500.0,0.00032876,2]
[314905044,1708626639577,-500.0,0.00032876,2]
[314905045,1708626639587,-500.0,0.00032876,2]
[314905046,1708626639597,-611.41,0.00032876,2]
[314905047,1708626639607,-500.0,0.00032876,2]
[314905048,1708626639617,-500.0,0.00032876,2]
[314905049,1708626639628,-500.0,0.00032876,2]
[314905050,1708626639638,-500.0,0.00032876,2]
[314905051,1708626639648,-504.0543582,0.00032876,2]
[314905052,1708626639658,-518.61232324,0.00032876,2]
[314905053,1708626639668,-500.0,0.00032876,2]
[314905054,1708626639677,-1007.29,0.00032876,2]
[314905055,1708626639687,-589.26,0.00032876,2]
[314905056,1708626639697,-500.0,0.00032876,2]
[314905057,1708626639707,-500.0,0.00032876,2]
[314905058,1708626639716,-590.46,0.00032876,2]
[314905059,1708626639726,-500.0,0.00032876,2]
[314905060,1708626639736,-500.0,0.00032876,2]
[314905061,1708626639745,-500.0,0.00032876,2]
[314905063,1708626639755,-500.0,0.00032876,2]
[314905065,1708626639764,-500.0,0.00032876,2]
[314905067,1708626639773,-500.0,0.00032876,2]
[314905069,1708626639783,-500.0,0.00032876,2]
[314905071,1708626639792,-500.0,0.00032876,2]
[314905073,1708626639802,-500.0,0.00032876,2]
[314905075,1708626639812,-500.0,0.00032876,2]
[314905077,1708626639823,-500.0,0.00032876,2]
[314905079,1708626639833,-500.0,0.00032876,2]
[314905081,1708626639842,-500.0,0.00032876,2]
[314905083,1708626639851,-500.0,0.00032876,2]
[314905085,1708626639861,-500.0,0.00032876,2]
[314905087,1708626639870,-500.0,0.00032876,2]
[314905089,1708626639879,-500.0,0.00032876,2]
[314905091,1708626639888,-845.3,0.00032876,2]
[314905093,1708626639897,-500.0,0.00032876,2]
[314905094,1708626639906,-500.0,0.00032876,2]
[314905097,1708626639916,-751.32,0.00032876,2]
[314905099,1708626639927,-500.0,0.00032876,2]
[314905101,1708626639936,-500.0,0.00032876,2]
[314905103,1708626639945,-500.0,0.00032876,2]
[314905105,1708626639954,-500.0,0.00032876,2]
[314905107,1708626639964,-500.0,0.00032876,2]
[314905109,1708626639973,-532.09146409,0.00032876,2]
[314905110,1708626639982,-500.0,0.00032876,2]
[314905112,1708626639991,-500.0,0.00032876,2]
[314905114,1708626640001,-500.0,0.00032876,2]
[314905116,1708626640011,-503.02,0.00032876,2]
[314905118,1708626640020,-500.0,0.00032876,2]
[314905120,1708626640030,-513.7757108,0.00032876,2]
[314905122,1708626640040,-500.0,0.00032876,2]
[314905124,1708626640049,-500.0,0.00032876,2]
[314905126,1708626640059,-500.0,0.00032876,2]
[314905128,1708626640068,-500.0,0.00032876,2]
[314905130,1708626640078,-500.0,0.00032876,2]
[314905132,1708626640087,-500.0,0.00032876,2]
[314905135,1708626640097,-500.0,0.00032876,2]
[314905137,1708626640107,-540.87,0.00032876,2]
[314905139,1708626640116,-500.0,0.00032876,2]
[314905141,1708626640126,-500.0,0.00032876,2]
[314905143,1708626640139,-500.0,0.00032876,2]
[314905145,1708626640149,-500.0,0.00032876,2]
[314905147,1708626640158,-500.0,0.00032876,2]
[314905149,1708626640168,-500.0,0.00032876,2]
[314905151,1708626640178,-500.0,0.00032876,2]
[314905153,1708626640187,-500.0,0.00032876,2]
[314905155,1708626640196,-500.0,0.00032876,2]
[314905157,1708626640206,-309.04326091,0.00032876,2]
[314905158,1708626640215,-500.0,0.00032876,2]
[314905160,1708626640228,-76.95806056,0.00032876,2]
[314905163,1708626640248,-423.04193944,0.00032876,2]
[314905165,1708626640258,-500.0,0.00032876,2]
[314905167,1708626640268,-500.0,0.00032876,2]
[314905169,1708626640277,-511.72,0.00032876,2]
[314905171,1708626640286,-500.0,0.00032876,2]
[314905173,1708626640296,-500.0,0.00032876,2]
[314905175,1708626640306,-500.0,0.00032876,2]
[314905177,1708626640317,-500.0,0.00032876,2]
[314905179,1708626640327,-500.0,0.00032876,2]
[314905181,1708626640336,-500.0,0.00032876,2]
[314905183,1708626640345,-500.0,0.00032876,2]
[314905185,1708626640355,-500.0,0.00032876,2]
[314905187,1708626640364,-500.0,0.00032876,2]
[314905189,1708626640373,-504.12,0.00032876,2]
[314905191,1708626640383,-500.0,0.00032876,2]
[314905193,1708626640392,-500.0,0.00032876,2]
[314905195,1708626640402,-500.0,0.00032876,2]
[314905196,1708626640411,-500.0,0.00032876,2]
[314905197,1708626640421,-676.86,0.00032876,2]
[314905198,1708626640431,-500.0,0.00032876,2]
[314905199,1708626640440,-500.0,0.00032876,2]
[314905200,1708626640450,-653.61,0.00032876,2]
[314905201,1708626640460,-500.0,0.00032876,2]
[314905202,1708626640471,-500.0,0.00032876,2]
[314905203,1708626640481,-500.0,0.00032876,2]
[314905204,1708626640493,-500.0,0.00032876,2]
[314905205,1708626640502,-500.0,0.00032876,2]
[314905206,1708626640512,-500.0,0.00032876,2]
[314905207,1708626640522,-558.73,0.00032876,2]
[314905208,1708626640532,-500.0,0.00032876,2]
[314905209,1708626640542,-500.0,0.00032876,2]
[314905210,1708626640551,-500.0,0.00032876,2]
[314905211,1708626640561,-643.81,0.00032876,2]
[314905212,1708626640570,-500.0,0.00032876,2]
[314905213,1708626640580,-510.6798839,0.00032876,2]
[314905214,1708626640590,-500.0,0.00032876,2]
[314905216,1708626640599,-500.0,0.00032876,2]
[314905217,1708626640609,-500.0,0.00032876,2]
[314905219,1708626640618,-503.67925667,0.00032876,2]
[314905221,1708626640628,-500.0,0.00032876,2]
[314905224,1708626640638,-515.24,0.00032876,2]
[314905226,1708626640647,-853.26,0.00032876,2]
[314905228,1708626640657,-500.0,0.00032876,2]
[314905230,1708626640666,-500.0,0.00032876,2]
[314905232,1708626640676,-500.0,0.00032876,2]
[314905233,1708626640685,-500.0,0.00032876,2]
[314905234,1708626640695,-500.0,0.00032876,2]
[314905235,1708626640705,-500.0,0.00032876,2]
[314905236,1708626640714,-585.99,0.00032876,2]
[314905237,1708626640723,-27.36193515,0.00032876,2]
[314905238,1708626640737,-472.63806485,0.00032876,2]
[314905239,1708626640747,-690.92,0.00032876,2]
[314905240,1708626640758,-500.0,0.00032876,2]
[314905241,1708626640767,-500.0,0.00032876,2]
[314905242,1708626640777,-113.1828091,0.00032876,2]
[314905243,1708626640789,-386.8171909,0.00032876,2]
[314905244,1708626640799,-500.0,0.00032876,2]
[314905245,1708626640809,-500.0,0.00032876,2]
[314905246,1708626640819,-500.0,0.00032876,2]
[314905247,1708626640829,-536.27,0.00032876,2]
[314905248,1708626640839,-528.79,0.00032876,2]
[314905249,1708626640850,-573.46,0.00032876,2]
[314905250,1708626640860,-500.0,0.00032876,2]
[314905251,1708626640871,-500.0,0.00032876,2]
[314905252,1708626640880,-523.24498668,0.00032876,2]
[314905253,1708626640890,-500.0,0.00032876,2]
[314905254,1708626640900,-500.0,0.00032876,2]
[314905255,1708626640910,-500.0,0.00032876,2]
[314905256,1708626640919,-500.0,0.00032876,2]
[314905257,1708626640929,-500.0,0.00032876,2]
[314905258,1708626640938,-500.0,0.00032876,2]
[314905259,1708626640948,-500.0,0.00032876,2]
[314905260,1708626640957,-500.0,0.00032876,2]
[314905261,1708626640967,-500.0,0.00032876,2]
[314905262,1708626640976,-500.0,0.00032876,2]
[314905263,1708626640986,-500.0,0.00032876,2]
[314905264,1708626640997,-500.0,0.00032876,2]
[314905265,1708626641006,-500.0,0.00032876,2]
[314905266,1708626641016,-500.0,0.00032876,2]
[314905267,1708626641025,-500.0,0.00032876,2]
[314905268,1708626641035,-500.0,0.00032876,2]
[314905269,1708626641044,-500.0,0.00032876,2]
[314905270,1708626641054,-500.0,0.00032876,2]
[314905271,1708626641063,-500.0,0.00032876,2]
[314905272,1708626641072,-500.0,0.00032876,2]
[314905273,1708626641082,-562.88,0.00032876,2]
[314905274,1708626641091,-500.0,0.00032876,2]
[314905275,1708626641101,-500.0,0.00032876,2]
[314905276,1708626641110,-500.0,0.00032876,2]
[314905277,1708626641119,-500.0,0.00032876,2]
[314905278,1708626641128,-517.77,0.00032876,2]
[314905279,1708626641138,-612.76,0.00032876,2]
[314905280,1708626641147,-500.0,0.00032876,2]
[314905281,1708626641156,-500.0,0.00032876,2]
[314905282,1708626641166,-629.92,0.00032876,2]
[314905283,1708626641175,-500.0,0.00032876,2]
[314905284,1708626641185,-500.0,0.00032876,2]
[314905285,1708626641194,-500.0,0.00032876,2]
[314905286,1708626641203,-585.48716853,0.00032876,2]
[314905287,1708626641213,-500.0,0.00032876,2]
[314905288,1708626641223,-500.0,0.00032876,2]
[314905289,1708626641236,-613.09942387,0.00032876,2]
[314905290,1708626641250,-499.11057613,0.00032876,2]
[314905291,1708626641259,-502.77,0.00032876,2]
[314905292,1708626641270,-500.0,0.00032876,2]
[314905293,1708626641281,-369.55179406,0.00032876,2]
[314905294,1708626641315,-130.44820594,0.00032876,2]
[314905295,1708626641324,-150.0,0.00032876,2]
[314905296,1708626641334,-602.01,0.00032876,2]
[314905297,1708626641344,-500.0,0.00032876,2]
[314905298,1708626641354,-500.0,0.00032876,2]
[314905299,1708626641364,-500.0,0.00032876,2]
[314905300,1708626641374,-500.0,0.00032876,2]
[314905301,1708626641384,-500.0,0.00032876,2]
[314905302,1708626641393,-500.0,0.00032876,2]
[314905303,1708626641403,-500.0,0.00032876,2]
[314905304,1708626641413,-1997.7,0.00032876,2]
[314905305,1708626641422,-500.0,0.00032876,2]
[314905306,1708626641432,-500.0,0.00032876,2]
[314905307,1708626641442,-500.0,0.00032876,2]
[314905308,1708626641451,-2068.71,0.00032876,2]
[314905309,1708626641461,-743.19,0.00032876,2]
[314905310,1708626641471,-500.0,0.00032876,2]
[314905311,1708626641482,-500.0,0.00032876,2]
[314905312,1708626641493,-574.73,0.00032876,2]
[314905313,1708626641502,-3803.67,0.00032876,2]
[314905314,1708626641512,-500.0,0.00032876,2]
[314905315,1708626641522,-500.0,0.00032876,2]
[314905316,1708626641532,-500.0,0.00032876,2]
[314905317,1708626641542,-849.5,0.00032876,2]
[314905318,1708626641552,-500.0,0.00032876,2]
[314905319,1708626641572,-212.71750188,0.00032876,2]
[314905320,1708626641584,-500.0,0.00032876,2]
[314905321,1708626641594,-578.24,0.00032876,2]
[314905322,1708626641604,-500.0,0.00032876,2]
[314905323,1708626641614,-2374.32,0.00032876,2]
[314905324,1708626641624,-500.0,0.00032876,2]
[314905325,1708626641635,-500.0,0.00032876,2]
[314905326,1708626641645,-500.0,0.00032876,2]
[314905327,1708626641655,-3257.01,0.00032876,2]
[314905328,1708626641665,-500.0,0.00032876,2]
[314905329,1708626641675,-500.0,0.00032876,2]
[314905331,1708626641685,-500.0,0.00032876,2]
[314905333,1708626641695,-2222.8,0.00032876,2]
[314905334,1708626641705,-4134.09,0.00032876,2]
[314905335,1708626641716,-500.0,0.00032876,2]
[314905336,1708626641726,-4111.42,0.00032876,2]
[314905337,1708626641736,-679.61,0.00032876,2]
[314905338,1708626641746,-500.0,0.00032876,2]
[314905339,1708626641756,-1000.0,0.00032876,7]
[314905340,1708626641766,-1096.02,0.00032876,2]
[314905341,1708626641776,-1916.66,0.00032876,2]
[314905342,1708626641786,-765.88,0.00032876,2]
[314905343,1708626641796,-500.0,0.00032876,2]
[314905344,1708626641806,-562.58,0.00032876,2]
[314905346,1708626641817,-500.0,0.00032876,2]
[314905348,1708626641827,-500.0,0.00032876,2]
[314905350,1708626641837,-500.0,0.00032876,2]
[314905352,1708626641847,-1333.41,0.00032876,2]
[314905354,1708626641856,-500.0,0.00032876,2]
[314905356,1708626641866,-587.23,0.00032876,2]
[314905357,1708626641875,-500.0,0.00032876,2]
[314905358,1708626641885,-500.0,0.00032876,2]
[314905359,1708626641895,-500.0,0.00032876,2]
[314905360,1708626641905,-500.0,0.00032876,2]
[314905361,1708626641914,-735.52,0.00032876,2]
[314905362,1708626641924,-500.0,0.00032876,2]
[314905363,1708626641934,-1100.09,0.00032876,2]
[314905364,1708626641944,-500.0,0.00032876,2]
[314905365,1708626641954,-620.56,0.00032876,2]
[314905366,1708626641963,-1860.47,0.00032876,2]
[314905367,1708626641972,-500.0,0.00032876,2]
[314905368,1708626641982,-1639.58,0.00032876,2]
[314905369,1708626641992,-500.0,0.00032876,2]
[314905370,1708626642008,-500.0,0.00032876,2]
[314905371,1708626642018,-6055.66,0.00032876,2]
[314905372,1708626642028,-5114.9,0.00032876,2]
[314905373,1708626642037,-7379.37,0.00032876,2]
[314905374,1708626642048,-541.66,0.00032876,2]
[314905375,1708626642058,-1063.68,0.00032876,2]
[314905376,1708626642067,-12816.86,0.00032876,2]
[314905377,1708626642078,-525.96,0.00032876,2]
[314905378,1708626642087,-500.0,0.00032876,2]
[314905379,1708626642097,-500.0,0.00032876,2]
[314905380,1708626642107,-500.0,0.00032876,2]
[314905381,1708626642116,-744.88,0.00032876,2]
[314905382,1708626642126,-945.02,0.00032876,2]
[314905383,1708626642136,-736.52,0.00032876,2]
[314905384,1708626642146,-500.0,0.00032876,2]
[314905385,1708626642156,-707.78,0.00032876,2]
[314905386,1708626642166,-500.0,0.00032876,2]
[314905387,1708626642176,-500.0,0.00032876,2]
[314905388,1708626642632,-1706.54,0.00032876,2]
[314905389,1708626642642,-2578.87,0.00032876,2]
[314905390,1708626642651,-500.0,0.00032876,2]
[314905391,1708626642661,-500.0,0.00032876,2]
[314905392,1708626642670,-5380.36,0.00032876,2]
[314905393,1708626642680,-500.0,0.00032876,2]
[314905394,1708626642689,-588.58,0.00032876,2]
[314905395,1708626642699,-500.0,0.00032876,2]
[314905396,1708626642708,-500.0,0.00032876,2]
[314905397,1708626642717,-505.89,0.00032876,2]
[314905398,1708626642727,-500.0,0.00032876,2]
[314905399,1708626642740,-500.0,0.00032876,2]
[314905400,1708626642750,-500.0,0.00032876,2]
[314905401,1708626642760,-618.84,0.00032876,2]
[314905402,1708626642768,-1201.84,0.00032876,2]
[314905403,1708626642778,-877.34,0.00032876,2]
[314905404,1708626642787,-1505.96,0.00032876,2]
[314905405,1708626642797,-500.0,0.00032876,2]
[314905406,1708626642807,-986.97,0.00032876,2]
[314905407,1708626642818,-544.8,0.00032876,2]
[314905408,1708626642828,-500.0,0.00032876,2]
[314905409,1708626642838,-500.0,0.00032876,2]
[314905410,1708626642848,-610.39,0.00032876,2]
[314905411,1708626642858,-521.69,0.00032876,2]
[314905412,1708626642868,-500.0,0.00032876,2]
[314905413,1708626642878,-500.0,0.00032876,2]
[314905414,1708626642888,-505.14,0.00032876,2]
[314905415,1708626642897,-592.11,0.00032876,2]
[314905416,1708626642907,-500.0,0.00032876,2]
[314905417,1708626642916,-500.0,0.00032876,2]
[314905418,1708626642926,-1438.58,0.00032876,2]
[314905419,1708626642936,-500.0,0.00032876,2]
[314905420,1708626642945,-711.07,0.00032876,2]
[314905421,1708626642955,-500.0,0.00032876,2]
[314905422,1708626642965,-2144.42,0.00032876,2]
[314905424,1708626642975,-500.0,0.00032876,2]
[314905425,1708626642985,-500.0,0.00032876,2]
[314905426,1708626642995,-320.6042922,0.00032876,2]
[314905427,1708626643012,-640.4557078,0.00032876,2]
[314905428,1708626643022,-547.0,0.00032876,2]
[314905429,1708626643032,-706.11,0.00032876,2]
[314905430,1708626643041,-594.26,0.00032876,2]
[314905431,1708626643051,-4322.74315965,0.00032876,2]
[314905437,1708626643330,-458.0,0.00032181,2]
[314905438,1708626643339,-4918.64684035,0.00032876,2]
[314905439,1708626643349,-500.0,0.00032876,2]
[314905440,1708626643359,-500.0,0.00032876,2]
[314905441,1708626643370,-1241.98,0.00032876,2]
[314905442,1708626643381,-613.16,0.00032876,2]
[314905443,1708626643390,-500.0,0.00032876,2]
[314905444,1708626643401,-1071.74,0.00032876,2]
[314905445,1708626643410,-500.0,0.00032876,2]
[314905446,1708626643420,-500.0,0.00032876,2]
[314905447,1708626643430,-850.86,0.00032876,2]
[314905448,1708626643439,-500.0,0.00032876,2]
[314905449,1708626643448,-500.0,0.00032876,2]
[314905450,1708626643458,-500.0,0.00032876,2]
[314905451,1708626643468,-5058.42,0.00032876,2]
[314905452,1708626643479,-500.0,0.00032876,2]
[314905454,1708626643489,-586.07,0.00032876,2]
[314905455,1708626643498,-500.0,0.00032876,2]
[314905456,1708626643508,-500.0,0.00032876,2]
[314905457,1708626643517,-588.68,0.00032876,2]
[314905458,1708626643527,-598.17,0.00032876,2]
[314905459,1708626643537,-500.0,0.00032876,2]
[314905461,1708626643547,-500.0,0.00032876,2]
[314905464,1708626643556,-748.44,0.00032876,2]
[314905466,1708626643566,-646.07,0.00032876,2]
[314905467,1708626643587,-500.0,0.00032876,2]
[314905468,1708626643598,-500.0,0.00032876,2]
[314905469,1708626643608,-500.0,0.00032876,2]
[314905470,1708626643619,-621.0,0.00032876,2]
[314905471,1708626643629,-500.0,0.00032876,2]
[314905472,1708626643639,-663.66,0.00032876,2]
[314905473,1708626643649,-563.23,0.00032876,2]
[314905474,1708626643664,-500.0,0.00032876,2]
[314905475,1708626643674,-1697.69,0.00032876,2]
[314905476,1708626643685,-863.66,0.00032876,2]
[314905477,1708626643695,-1036.19,0.00032876,2]
[314905478,1708626643704,-3439.32,0.00032876,2]
[314905479,1708626643715,-2659.09,0.00032876,2]
[314905480,1708626643726,-500.0,0.00032876,2]
[314905481,1708626643736,-500.0,0.00032876,2]
[314905482,1708626643746,-1353.91,0.00032876,2]
[314905483,1708626643757,-1002.08,0.00032876,2]
[314905484,1708626643767,-500.0,0.00032876,2]
[314905485,1708626643778,-514.81,0.00032876,2]
[314905486,1708626643789,-500.0,0.00032876,2]
[314905487,1708626643799,-1357.94,0.00032876,2]
[314905488,1708626643810,-3530.59,0.00032876,2]
[314905489,1708626643821,-1435.84,0.00032876,2]
[314905490,1708626643831,-500.0,0.00032876,2]
[314905491,1708626643841,-500.0,0.00032876,2]
[314905492,1708626643851,-982.55,0.00032876,2]
[314905493,1708626643861,-617.6,0.00032876,2]
[314905494,1708626643872,-360.16424648,0.00032876,2]
[314905495,1708626643882,-503.87,0.00032876,2]
[314905496,1708626643892,-500.0,0.00032876,2]
[314905497,1708626643903,-500.0,0.00032876,2]
[314905498,1708626643913,-500.0,0.00032876,2]
[314905499,1708626643923,-729.03,0.00032876,2]
[314905500,1708626643934,-6881.08,0.00032876,2]
[314905501,1708626643943,-500.0,0.00032876,2]
[314905502,1708626643954,-822.21,0.00032876,2]
[314905503,1708626643964,-723.99,0.00032876,2]
[314905504,1708626643974,-500.0,0.00032876,2]
[314905505,1708626643984,-500.0,0.00032876,2]
[314905506,1708626643994,-592.08,0.00032876,2]
[314905507,1708626644005,-742.53,0.00032876,2]
[314905508,1708626644019,-552.59,0.00032876,2]
[314905509,1708626644030,-500.0,0.00032876,2]
[314905510,1708626644041,-500.0,0.00032876,2]
[314905511,1708626644051,-500.0,0.00032876,2]
[314905512,1708626644062,-513.22373717,0.00032876,2]
[314905513,1708626644072,-961.31,0.00032876,2]
[314905514,1708626644082,-557.39,0.00032876,2]
[314905515,1708626644092,-3074.05,0.00032876,2]
[314905516,1708626644102,-153.81,0.00032877,2]
[314905517,1708626644112,-151.4,0.00032877,2]
[314905518,1708626644122,-250.0,0.00032877,2]
[314905519,1708626644132,-500.0,0.000329,2]
[314905520,1708626644142,-530.546762,0.000329,2]
[314905521,1708626644152,-151.50220252,0.00032913,2]
[314905522,1708626644162,-158.55805005,0.00032913,2]
[314905523,1708626644172,-2225.83005336,0.00032913,2]
[314905524,1708626644183,-169.49473477,0.00032913,4]
[314905525,1708626644192,-500.0,0.00032999,4]
[314905526,1708626644203,-10062.15602209,0.00033,7]
[314905527,1708626644214,-2474.67549831,0.00033,2]
[314905528,1708626644465,-500.0,0.00033,2]
[314905529,1708626644489,-544.60582247,0.00033,2]
[314905530,1708626644527,-5988.89797761,0.00033,2]
[314905531,1708626644712,-24284.76744048,0.00033,2]
[314905532,1708626644722,-80000.0,0.00033,4]
[314905533,1708626644733,-10590.0,0.00033,2]
[314905534,1708626644744,-1004.7039,0.00033011,2]
[314905535,1708626644754,-84113.64327255,0.00033012,4]
[314905536,1708626644768,-7443.14643172,0.00033012,4]
[314905539,1708626645334,-205.0,0.0003218,4]
[314905540,1708626645344,-533.0,0.00032181,2]
[314905541,1708626645353,-3828.37232324,0.00033012,4]
[314905542,1708626645422,-3176.26332892,0.00033,2]
[314905551,1708626646310,-1039.0,0.00032181,2]
[314905552,1708626646320,-307.44,0.0003283,2]
[314905553,1708626646330,-500.0,0.00032876,2]
[314905554,1708626646339,-523.89361854,0.00032913,2]
[314905555,1708626646348,-6823.72667108,0.00033,2]
[314905556,1708626646357,-5881.85316462,0.00033012,4]
[314905557,1708626646370,-123794.34580317,0.00033012,4]
[314905558,1708626646430,-493.11925088,0.00033012,4]
[314905577,1708627037442,816.514443,0.000273,2]
[314905578,1708627037462,853.485557,0.000273,2]
[314905582,1708627165635,153.0,0.000273,2]
[314905588,1708627627110,-455.14,0.0002834,2]
[314905589,1708627627133,-312.78337604,0.0003,4]
[314905590,1708627627155,-164.58,0.00030103,2]
[314905591,1708627627175,-150.0,0.0003014,2]
[314905592,1708627627195,-2000.0,0.00030157,2]
[314905593,1708627627214,-5088.7,0.0003017,2]
[314905594,1708627627234,-162.22173044,0.00030179,2]
[314905595,1708627627253,-250.0,0.00030186,2]
[314905596,1708627627272,-500.0,0.00030224,2]
[314905597,1708627627291,-500.0,0.0003025,2]
[314905598,1708627627312,-506.8,0.00030259,2]
[314905599,1708627627332,-2821.11,0.00030259,2]
[314905600,1708627627353,-177.55,0.00030259,2]
[314905601,1708627627374,-150.0,0.0003026,2]
[314905602,1708627627394,-15661.44,0.00030261,2]